fUSD/lending_fUSD_20260612
["ID","MTS","AMOUNT","RATE_DAILY","PERIOD"]
[424854025,1781206251000,-400.0,0.0003497,2]
[424854024,1781206251000,-700.0,0.0003497,2]
[424854022,1781206251000,-400.0,0.00034952,2]
[424854023,1781206251000,-1139.24,0.00034964,7]
[424854027,1781206251000,-400.0,0.0003497,2]
[424854034,1781206251000,-181.08010149,0.00034998,31]
[424854026,1781206251000,-700.0,0.0003497,2]
[424854035,1781206251000,-155.57259517,0.00034998,31]
[424854028,1781206251000,-1839.64,0.00034972,60]
[424854029,1781206251000,-553.124067,0.00034978,120]
[424854031,1781206251000,-151.0,0.00034998,31]
[424854030,1781206251000,-209.37652795,0.00034998,31]
[424854032,1781206251000,-154.12265554,0.00034998,31]
[424854033,1781206251000,-623.58710447,0.00034998,31]
[424854036,1781206251000,-151.0,0.00034998,31]
[424853995,1781206251000,-155.57259517,0.000349,37]
[424854041,1781206251000,-288.41545022,0.00034998,31]
[424854038,1781206251000,-4197.22089552,0.00034998,31]
[424854037,1781206251000,-599.60298507,0.00034998,31]
[424854039,1781206251000,-181.08010149,0.00034998,31]
[424854019,1781206251000,-15129.0,0.00034952,10]
[424854017,1781206251000,-8499.3318,0.00034942,2]
[424854040,1781206251000,-151.0,0.00034998,31]
[424854018,1781206251000,-250.02,0.00034946,120]
[424854020,1781206251000,-215.0,0.00034952,3]
[424853996,1781206251000,-151.0,0.000349,37]
[424853997,1781206251000,-621.78829552,0.000349,37]
[424853999,1781206251000,-187.78006524,0.000349,37]
[424854001,1781206251000,-187.78006524,0.000349,37]
[424854000,1781206251000,-151.0,0.000349,37]
[424854003,1781206251000,-152.0,0.000349,37]
[424854005,1781206251000,-500.0,0.000349,37]
[424854004,1781206251000,-151.0,0.000349,37]
[424854002,1781206251000,-151.0,0.000349,37]
[424853993,1781206251000,-646.65982734,0.000349,37]
[424854008,1781206251000,-160.27064532,0.000349,37]
[424854006,1781206251000,-160.0,0.000349,37]
[424854011,1781206251000,-187.78006524,0.000349,37]
[424854007,1781206251000,-8565.75555911,0.000349,37]
[424854014,1781206251000,-525.0,0.00034909,17]
[424854012,1781206251000,-500.0,0.000349,37]
[424854015,1781206251000,-6347.26,0.00034916,2]
[424854009,1781206251000,-250.0,0.000349,37]
[424854010,1781206251000,-1000.0,0.000349,37]
[424854013,1781206251000,-151.0,0.000349,37]
[424854016,1781206251000,-351.93,0.00034931,5]
[424854062,1781206252000,-151.0,0.00034999,30]
[424854065,1781206252000,-168.3888056,0.00034999,31]
[424854064,1781206252000,-579.88197956,0.00034999,31]
[424854063,1781206252000,-154.12265554,0.00034999,30]
[424854066,1781206252000,-155.57259517,0.00034999,31]
[424854072,1781206252000,-155.18434343,0.00034999,31]
[424854071,1781206252000,-168.3888056,0.00034999,31]
[424854070,1781206252000,-557.5788265,0.00034999,31]
[424854069,1781206252000,-3903.0517855,0.00034999,31]
[424854073,1781206252000,-168.3888056,0.00034999,31]
[424854067,1781206252000,-168.3888056,0.00034999,31]
[424854068,1781206252000,-151.0,0.00034999,31]
[424854082,1781206252000,-4047.46470156,0.00034999,30]
[424854079,1781206252000,-174.61919141,0.00034999,30]
[424854081,1781206252000,-578.20924308,0.00034999,30]
[424854058,1781206252000,-200.0,0.00034999,30]
[424854074,1781206252000,-250.0,0.00034999,31]
[424854060,1781206252000,-151.0,0.00034999,31]
[424854054,1781206252000,-151.0,0.00034998,31]
[424854057,1781206252000,-200.0,0.00034999,31]
[424854083,1781206252000,-151.0,0.00034999,31]
[424854042,1781206252000,-181.08010149,0.00034998,31]
[424854044,1781206252000,-152.0,0.00034998,31]
[424854045,1781206252000,-151.0,0.00034998,31]
[424854043,1781206252000,-151.0,0.00034998,31]
[424854055,1781206252000,-300.0,0.00034999,10]
[424854053,1781206252000,-500.0,0.00034998,31]
[424854061,1781206252000,-154.12265554,0.00034999,31]
[424854047,1781206252000,-160.27064532,0.00034998,31]
[424854048,1781206252000,-500.0,0.00034998,31]
[424854051,1781206252000,-1000.0,0.00034998,31]
[424854050,1781206252000,-250.0,0.00034998,31]
[424854049,1781206252000,-8260.13072238,0.00034998,31]
[424854052,1781206252000,-181.08010149,0.00034998,31]
[424854056,1781206252000,-666.0,0.00034999,30]
[424854059,1781206252000,-1201.65948645,0.00034999,31]
[424854046,1781206252000,-160.0,0.00034998,31]
[424854080,1781206252000,-151.0,0.00034999,30]
[424854077,1781206252000,-155.57259517,0.00034999,30]
[424854075,1781206252000,-601.3376128,0.00034999,30]
[424854100,1781206252000,-168.3888056,0.00034999,31]
[424854102,1781206252000,-500.0,0.00034999,30]
[424854111,1781206252000,-564.96786207,0.00035,120]
[424854112,1781206252000,-512.68757017,0.00035,120]
[424854113,1781206252000,-386.34766291,0.00035,120]
[424854114,1781206252000,-150.09701702,0.00035,7]
[424854105,1781206252000,-1000.0,0.00034999,30]
[424854107,1781206252000,-174.61919141,0.00034999,30]
[424854106,1781206252000,-557.5788265,0.00034999,31]
[424854109,1781206252000,-500.0,0.00034999,30]
[424854110,1781206252000,-151.0,0.00034999,30]
[424854115,1781206252000,-150.0,0.00035,7]
[424854117,1781206252000,-575.88650892,0.00035,120]
[424854118,1781206252000,-800.0,0.00035,7]
[424854116,1781206252000,-173.35236373,0.00035,120]
[424854119,1781206252000,-283.206398,0.00035,120]
[424854076,1781206252000,-151.0,0.00034999,31]
[424854104,1781206252000,-500.0,0.00034999,31]
[424854103,1781206252000,-7965.41053267,0.00034999,30]
[424854108,1781206252000,-151.0,0.00034999,31]
[424854101,1781206252000,-160.27064532,0.00034999,30]
[424854099,1781206252000,-151.0,0.00034999,30]
[424854078,1781206252000,-174.61919141,0.00034999,30]
[424854120,1781206252000,-800.0,0.00035,7]
[424854084,1781206252000,-168.3888056,0.00034999,31]
[424854085,1781206252000,-160.0,0.00034999,31]
[424854089,1781206252000,-160.27064532,0.00034999,31]
[424854088,1781206252000,-151.0,0.00034999,31]
[424854094,1781206252000,-174.61919141,0.00034999,30]
[424854086,1781206252000,-174.61919141,0.00034999,30]
[424854093,1781206252000,-151.0,0.00034999,30]
[424854090,1781206252000,-7681.20591386,0.00034999,31]
[424854087,1781206252000,-152.0,0.00034999,31]
[424854091,1781206252000,-500.0,0.00034999,31]
[424854096,1781206252000,-151.0,0.00034999,30]
[424854095,1781206252000,-1000.0,0.00034999,31]
[424854098,1781206252000,-152.0,0.00034999,30]
[424854092,1781206252000,-250.0,0.00034999,30]
[424854097,1781206252000,-160.0,0.00034999,30]
[424854144,1781206253000,-157.57216,0.0003504,61]
[424854150,1781206253000,-200.0,0.00035129,37]
[424854148,1781206253000,-200.0,0.00035086,10]
[424854147,1781206253000,-1570.0,0.00035068,30]
[424854151,1781206253000,-1201.65948645,0.00035129,37]
[424854146,1781206253000,-8499.3318,0.00035066,2]
[424854145,1781206253000,-469.82,0.00035043,7]
[424854156,1781206253000,-559.19188,0.00035129,37]
[424854152,1781206253000,-154.12265554,0.00035129,37]
[424854155,1781206253000,-155.57259517,0.00035129,37]
[424854167,1781206253000,-162.380719,0.00035129,37]
[424854159,1781206253000,-3763.7915,0.00035129,37]
[424854161,1781206253000,-162.380719,0.00035129,37]
[424854158,1781206253000,-151.0,0.00035129,37]
[424854160,1781206253000,-537.6845,0.00035129,37]
[424854163,1781206253000,-155.18434343,0.00035129,37]
[424854165,1781206253000,-151.0,0.00035129,37]
[424854164,1781206253000,-250.0,0.00035129,37]
[424854166,1781206253000,-151.0,0.00035129,37]
[424854171,1781206253000,-160.27064532,0.00035129,37]
[424854149,1781206253000,-157.57217,0.0003509,62]
[424854162,1781206253000,-162.380719,0.00035129,37]
[424854153,1781206253000,-151.0,0.00035129,37]
[424854125,1781206253000,-72720.59533137,0.00035,7]
[424854143,1781206253000,-1134.0,0.00035,7]
[424854121,1781206253000,-800.0,0.00035,7]
[424854123,1781206253000,-150.0,0.00035,7]
[424854122,1781206253000,-800.0,0.00035,7]
[424854124,1781206253000,-72720.59533137,0.00035,7]
[424854174,1781206253000,-500.0,0.00035129,37]
[424854129,1781206253000,-800.0,0.00035,7]
[424854127,1781206253000,-997.80552854,0.00035,120]
[424854126,1781206253000,-1590.0,0.00035,7]
[424854130,1781206253000,-1588.95,0.00035,7]
[424854131,1781206253000,-1588.95,0.00035,7]
[424854154,1781206253000,-162.380719,0.00035129,37]
[424854128,1781206253000,-800.0,0.00035,7]
[424854132,1781206253000,-236.11079186,0.00035,2]
[424854134,1781206253000,-1013.1032934,0.00035,14]
[424854135,1781206253000,-22365.67,0.00035,7]
[424854136,1781206253000,-174.0,0.00035,2]
[424854142,1781206253000,-200.0,0.00035,120]
[424854139,1781206253000,-300.0,0.00035,10]
[424854140,1781206253000,-2503.1,0.00035,2]
[424854138,1781206253000,-179.535904,0.00035,2]
[424854137,1781206253000,-199.93762835,0.00035,5]
[424854141,1781206253000,-158.55225596,0.00035,2]
[424854133,1781206253000,-168.58243131,0.00035,2]
[424854168,1781206253000,-160.0,0.00035129,37]
[424854157,1781206253000,-162.380719,0.00035129,37]
[424854172,1781206253000,-7407.141672,0.00035129,37]
[424854197,1781206253000,-1050.42853373,0.00035202,2]
[424854204,1781206253000,-150.0,0.00035314,120]
[424854205,1781206253000,-8499.3318,0.00035314,2]
[424854203,1781206253000,-231.29,0.00035299,120]
[424854207,1781206253000,-1570.0,0.00035342,30]
[424854200,1781206253000,-150.0,0.00035285,2]
[424854201,1781206253000,-150.97091164,0.00035285,2]
[424854206,1781206253000,-500.0,0.00035335,2]
[424854202,1781206253000,-255.54,0.00035299,120]
[424854209,1781206253000,-666.0,0.00035351,30]
[424854210,1781206253000,-200.0,0.00035352,38]
[424854217,1781206253000,-539.24,0.00035352,38]
[424854213,1781206253000,-151.0,0.00035352,38]
[424854216,1781206253000,-155.57259517,0.00035352,38]
[424854212,1781206253000,-154.12265554,0.00035352,38]
[424854208,1781206253000,-300.0,0.00035351,10]
[424854211,1781206253000,-1201.65948645,0.00035352,38]
[424854214,1781206253000,-1870.65466908,0.00035352,38]
[424854218,1781206253000,-156.587,0.00035352,38]
[424854220,1781206253000,-518.5,0.00035352,38]
[424854219,1781206253000,-151.0,0.00035352,38]
[424854170,1781206253000,-152.0,0.00035129,37]
[424854221,1781206253000,-3629.5,0.00035352,38]
[424854199,1781206253000,-150.0,0.00035285,2]
[424854198,1781206253000,-541.180316,0.00035279,120]
[424854215,1781206253000,-156.587,0.00035352,38]
[424854195,1781206253000,-8499.3318,0.0003519,2]
[424854169,1781206253000,-151.0,0.00035129,37]
[424854196,1781206253000,-1000.0,0.00035202,2]
[424854175,1781206253000,-1000.0,0.00035129,37]
[424854179,1781206253000,-537.6845,0.00035129,37]
[424854176,1781206253000,-162.380719,0.00035129,37]
[424854178,1781206253000,-500.0,0.00035129,37]
[424854177,1781206253000,-3154.88520818,0.00035129,37]
[424854180,1781206253000,-151.0,0.00035129,37]
[424854185,1781206253000,-880.0,0.00035149,30]
[424854183,1781206253000,-248.0,0.00035149,30]
[424854181,1781206253000,-260.0,0.00035149,30]
[424854173,1781206253000,-278.88022306,0.00035129,37]
[424854182,1781206253000,-279.0,0.00035149,30]
[424854184,1781206253000,-269.0,0.00035149,30]
[424854194,1781206253000,-813.528146,0.00035168,60]
[424854192,1781206253000,-241.0,0.00035162,30]
[424854193,1781206253000,-199.0,0.00035162,30]
[424854187,1781206253000,-206.0,0.00035149,30]
[424854189,1781206253000,-802.0,0.00035162,30]
[424854191,1781206253000,-1292.0,0.00035162,30]
[424854188,1781206253000,-364.0,0.00035162,30]
[424854186,1781206253000,-345.0,0.00035149,30]
[424854190,1781206253000,-389.0,0.00035162,30]
[424854270,1781206254000,-1008.79341403,0.0003537,2]
[424854247,1781206254000,-1000.0,0.0003537,2]
[424854250,1781206254000,-1000.0,0.0003537,2]
[424854251,1781206254000,-1000.0,0.0003537,2]
[424854255,1781206254000,-1000.0,0.0003537,2]
[424854253,1781206254000,-1000.0,0.0003537,2]
[424854256,1781206254000,-1000.0,0.0003537,2]
[424854254,1781206254000,-1000.0,0.0003537,2]
[424854252,1781206254000,-1000.0,0.0003537,2]
[424854258,1781206254000,-1000.0,0.0003537,2]
[424854259,1781206254000,-1000.0,0.0003537,2]
[424854262,1781206254000,-1000.0,0.0003537,2]
[424854260,1781206254000,-1000.0,0.0003537,2]
[424854263,1781206254000,-1000.0,0.0003537,2]
[424854261,1781206254000,-1000.0,0.0003537,2]
[424854244,1781206254000,-502.50956445,0.0003536,2]
[424854264,1781206254000,-1000.0,0.0003537,2]
[424854266,1781206254000,-1000.0,0.0003537,2]
[424854267,1781206254000,-1000.0,0.0003537,2]
[424854265,1781206254000,-1000.0,0.0003537,2]
[424854268,1781206254000,-1000.0,0.0003537,2]
[424854269,1781206254000,-1000.0,0.0003537,2]
[424854257,1781206254000,-1000.0,0.0003537,2]
[424854242,1781206254000,-518.5,0.00035352,38]
[424854226,1781206254000,-151.0,0.00035352,38]
[424854249,1781206254000,-1000.0,0.0003537,2]
[424854271,1781206254000,-157.57216,0.0003537,65]
[424854224,1781206254000,-156.587,0.00035352,38]
[424854222,1781206254000,-156.587,0.00035352,38]
[424854223,1781206254000,-250.0,0.00035352,38]
[424854227,1781206254000,-151.0,0.00035352,38]
[424854225,1781206254000,-155.18434343,0.00035352,38]
[424854231,1781206254000,-152.0,0.00035352,38]
[424854230,1781206254000,-151.0,0.00035352,38]
[424854229,1781206254000,-156.587,0.00035352,38]
[424854228,1781206254000,-160.0,0.00035352,38]
[424854236,1781206254000,-1000.0,0.00035352,38]
[424854235,1781206254000,-500.0,0.00035352,38]
[424854238,1781206254000,-8938.70230887,0.00035352,38]
[424854234,1781206254000,-7142.856,0.00035352,38]
[424854233,1781206254000,-160.27064532,0.00035352,38]
[424854232,1781206254000,-151.0,0.00035352,38]
[424854237,1781206254000,-3111.0,0.00035352,38]
[424854240,1781206254000,-500.0,0.00035352,38]
[424854239,1781206254000,-156.587,0.00035352,38]
[424854241,1781206254000,-3000.0,0.00035352,38]
[424854246,1781206254000,-1000.0,0.0003537,2]
[424854248,1781206254000,-1000.0,0.0003537,2]
[424854243,1781206254000,-151.0,0.00035352,38]
[424854245,1781206254000,-520.76522277,0.0003537,2]
[424854274,1781206254000,-157.57217,0.0003537,65]
[424854318,1781206254000,-10000.0,0.00035399,30]
[424854273,1781206254000,-157.57217,0.0003537,65]
[424854310,1781206254000,-3000.0,0.00035399,30]
[424854309,1781206254000,-152.0,0.00035399,30]
[424854301,1781206254000,-500.0,0.00035399,30]
[424854304,1781206254000,-151.0,0.00035399,30]
[424854308,1781206254000,-151.0,0.00035399,30]
[424854307,1781206254000,-160.27064532,0.00035399,30]
[424854305,1781206254000,-151.0,0.00035399,30]
[424854306,1781206254000,-151.0,0.00035399,30]
[424854303,1781206254000,-160.0,0.00035399,30]
[424854320,1781206254000,-151.0,0.00035399,30]
[424854302,1781206254000,-151.0,0.00035399,30]
[424854315,1781206254000,-500.0,0.00035399,30]
[424854311,1781206254000,-10000.0,0.00035399,30]
[424854317,1781206254000,-1000.0,0.00035399,30]
[424854313,1781206254000,-500.0,0.00035399,30]
[424854319,1781206254000,-3000.0,0.00035399,30]
[424854312,1781206254000,-6888.0,0.00035399,30]
[424854314,1781206254000,-160.15525447,0.00035399,30]
[424854323,1781206254000,-500.0,0.00035399,30]
[424854322,1781206254000,-500.0,0.00035399,30]
[424854324,1781206254000,-160.15525447,0.00035399,30]
[424854272,1781206254000,-157.57217,0.0003537,65]
[424854316,1781206254000,-500.0,0.00035399,30]
[424854300,1781206254000,-151.0,0.00035399,30]
[424854321,1781206254000,-10000.0,0.00035399,30]
[424854298,1781206254000,-250.0,0.00035399,30]
[424854278,1781206254000,-500.0,0.00035398,120]
[424854294,1781206254000,-151.0,0.00035399,30]
[424854277,1781206254000,-300.0,0.00035398,10]
[424854275,1781206254000,-300.0,0.00035398,10]
[424854276,1781206254000,-666.0,0.00035398,30]
[424854280,1781206254000,-500.0,0.00035398,120]
[424854279,1781206254000,-543.9,0.00035398,120]
[424854283,1781206254000,-161.70674204,0.00035399,2]
[424854286,1781206254000,-500.0,0.00035399,30]
[424854281,1781206254000,-500.0,0.00035398,120]
[424854284,1781206254000,-154.12265554,0.00035399,30]
[424854289,1781206254000,-6000.0,0.00035399,30]
[424854282,1781206254000,-200.0,0.00035399,30]
[424854297,1781206254000,-3500.0,0.00035399,30]
[424854285,1781206254000,-1201.65948645,0.00035399,30]
[424854287,1781206254000,-151.0,0.00035399,30]
[424854290,1781206254000,-520.0,0.00035399,30]
[424854292,1781206254000,-500.0,0.00035399,30]
[424854299,1781206254000,-155.18434343,0.00035399,30]
[424854291,1781206254000,-151.0,0.00035399,30]
[424854296,1781206254000,-500.0,0.00035399,30]
[424854293,1781206254000,-155.57259517,0.00035399,30]
[424854288,1781206254000,-151.0,0.00035399,30]
[424854295,1781206254000,-151.0,0.00035399,30]
[424854363,1781206255000,-500.0,0.00035399,30]
[424854355,1781206255000,-500.0,0.00035399,30]
[424854362,1781206255000,-500.0,0.00035399,30]
[424854358,1781206255000,-160.15525453,0.00035399,30]
[424854350,1781206255000,-160.15525447,0.00035399,30]
[424854357,1781206255000,-500.0,0.00035399,30]
[424854354,1781206255000,-160.15525447,0.00035399,30]
[424854352,1781206255000,-160.15525447,0.00035399,30]
[424854361,1781206255000,-500.0,0.00035399,30]
[424854359,1781206255000,-500.0,0.00035399,30]
[424854364,1781206255000,-500.0,0.00035399,30]
[424854373,1781206255000,-1201.65948645,0.00035453,10]
[424854356,1781206255000,-160.15525447,0.00035399,30]
[424854372,1781206255000,-1201.65948645,0.00035453,10]
[424854367,1781206255000,-150.0,0.000354,2]
[424854374,1781206255000,-1201.65948645,0.00035453,10]
[424854371,1781206255000,-300.0,0.00035452,10]
[424854375,1781206255000,-174.61919141,0.00035453,10]
[424854369,1781206255000,-8499.3318,0.00035438,2]
[424854365,1781206255000,-500.0,0.00035399,30]
[424854366,1781206255000,-286.0,0.000354,120]
[424854368,1781206255000,-2017.46127646,0.00035423,15]
[424854349,1781206255000,-160.15525447,0.00035399,30]
[424854360,1781206255000,-500.0,0.00035399,30]
[424854351,1781206255000,-500.0,0.00035399,30]
[424854325,1781206255000,-500.0,0.00035399,30]
[424854348,1781206255000,-500.0,0.00035399,30]
[424854370,1781206255000,-415.49,0.00035452,7]
[424854326,1781206255000,-500.0,0.00035399,30]
[424854327,1781206255000,-151.0,0.00035399,30]
[424854331,1781206255000,-160.15525447,0.00035399,30]
[424854329,1781206255000,-500.0,0.00035399,30]
[424854332,1781206255000,-10000.0,0.00035399,30]
[424854330,1781206255000,-500.0,0.00035399,30]
[424854328,1781206255000,-10000.0,0.00035399,30]
[424854335,1781206255000,-160.15525447,0.00035399,30]
[424854333,1781206255000,-500.0,0.00035399,30]
[424854338,1781206255000,-191.97348511,0.00035399,30]
[424854336,1781206255000,-10000.0,0.00035399,30]
[424854334,1781206255000,-500.0,0.00035399,30]
[424854339,1781206255000,-160.15525447,0.00035399,30]
[424854337,1781206255000,-500.0,0.00035399,30]
[424854340,1781206255000,-2651.52208296,0.00035399,30]
[424854341,1781206255000,-500.0,0.00035399,30]
[424854343,1781206255000,-500.0,0.00035399,30]
[424854342,1781206255000,-160.15525447,0.00035399,30]
[424854353,1781206255000,-500.0,0.00035399,30]
[424854344,1781206255000,-160.15525447,0.00035399,30]
[424854345,1781206255000,-500.0,0.00035399,30]
[424854346,1781206255000,-160.15525447,0.00035399,30]
[424854347,1781206255000,-160.15525447,0.00035399,30]
[424854377,1781206255000,-1201.65948645,0.00035453,10]
[424854429,1781206255000,-151.0,0.00035453,10]
[424854379,1781206255000,-181.08010149,0.00035453,10]
[424854399,1781206255000,-151.0,0.00035453,10]
[424854408,1781206255000,-1201.65948645,0.00035453,10]
[424854406,1781206255000,-151.0,0.00035453,10]
[424854409,1781206255000,-151.0,0.00035453,10]
[424854412,1781206255000,-151.0,0.00035453,10]
[424854415,1781206255000,-151.0,0.00035453,10]
[424854416,1781206255000,-775.4783256,0.00035453,10]
[424854410,1781206255000,-151.0,0.00035453,10]
[424854413,1781206255000,-225.18697532,0.00035453,10]
[424854417,1781206255000,-668.65185756,0.00035453,10]
[424854411,1781206255000,-152.0,0.00035453,10]
[424854414,1781206255000,-500.0,0.00035453,10]
[424854418,1781206255000,-1201.65948645,0.00035453,10]
[424854420,1781206255000,-500.0,0.00035453,10]
[424854426,1781206255000,-500.0,0.00035453,10]
[424854421,1781206255000,-151.0,0.00035453,10]
[424854428,1781206255000,-1201.65948645,0.00035453,10]
[424854423,1781206255000,-151.0,0.00035453,10]
[424854427,1781206255000,-693.39197629,0.00035453,10]
[424854419,1781206255000,-2287.58423773,0.00035453,10]
[424854422,1781206255000,-151.0,0.00035453,10]
[424854424,1781206255000,-152.0,0.00035453,10]
[424854425,1781206255000,-151.0,0.00035453,10]
[424854405,1781206255000,-151.0,0.00035453,10]
[424854402,1781206255000,-151.0,0.00035453,10]
[424854380,1781206255000,-1201.65948645,0.00035453,10]
[424854403,1781206255000,-217.15233878,0.00035453,10]
[424854404,1781206255000,-160.2706454,0.00035453,10]
[424854381,1781206255000,-200.0,0.00035453,10]
[424854376,1781206255000,-200.0,0.00035453,10]
[424854378,1781206255000,-200.0,0.00035453,10]
[424854382,1781206255000,-187.78006524,0.00035453,10]
[424854383,1781206255000,-1201.65948645,0.00035453,10]
[424854384,1781206255000,-200.0,0.00035453,10]
[424854386,1781206255000,-194.72792766,0.00035453,10]
[424854388,1781206255000,-599.60298507,0.00035453,10]
[424854389,1781206255000,-333.81194748,0.00035453,10]
[424854390,1781206255000,-721.12765534,0.00035453,10]
[424854385,1781206255000,-578.20924308,0.00035453,10]
[424854387,1781206255000,-1201.65948645,0.00035453,10]
[424854392,1781206255000,-151.0,0.00035453,10]
[424854393,1781206255000,-1201.65948645,0.00035453,10]
[424854394,1781206255000,-151.0,0.00035453,10]
[424854398,1781206255000,-151.0,0.00035453,10]
[424854395,1781206255000,-621.78829552,0.00035453,10]
[424854396,1781206255000,-747.80937859,0.00035453,10]
[424854397,1781206255000,-209.40437684,0.00035453,10]
[424854400,1781206255000,-152.0,0.00035453,10]
[424854401,1781206255000,-1367.87611253,0.00035453,10]
[424854407,1781206255000,-644.79446245,0.00035453,10]
[424854391,1781206255000,-201.93286098,0.00035453,10]
[424854466,1781206256000,-500.0,0.00035453,10]
[424854463,1781206256000,-151.0,0.00035453,10]
[424854464,1781206256000,-151.0,0.00035453,10]
[424854462,1781206256000,-151.0,0.00035453,10]
[424854457,1781206256000,-500.0,0.00035453,10]
[424854461,1781206256000,-260.4103811,0.00035453,10]
[424854459,1781206256000,-1201.65948645,0.00035453,10]
[424854456,1781206256000,-152.0,0.00035453,10]
[424854467,1781206256000,-500.0,0.00035453,10]
[424854460,1781206256000,-151.0,0.00035453,10]
[424854465,1781206256000,-152.0,0.00035453,10]
[424854478,1781206256000,-280.03725111,0.00035453,10]
[424854468,1781206256000,-1201.65948645,0.00035453,10]
[424854472,1781206256000,-151.0,0.00035453,10]
[424854470,1781206256000,-151.0,0.00035453,10]
[424854471,1781206256000,-151.0,0.00035453,10]
[424854474,1781206256000,-500.0,0.00035453,10]
[424854473,1781206256000,-152.0,0.00035453,10]
[424854482,1781206256000,-151.0,0.00035453,10]
[424854479,1781206256000,-151.0,0.00035453,10]
[424854477,1781206256000,-165.55515187,0.00035453,10]
[424854475,1781206256000,-500.0,0.00035453,10]
[424854454,1781206256000,-151.0,0.00035453,10]
[424854469,1781206256000,-270.0455652,0.00035453,10]
[424854455,1781206256000,-151.0,0.00035453,10]
[424854441,1781206256000,-500.0,0.00035453,10]
[424854452,1781206256000,-1201.65948645,0.00035453,10]
[424854480,1781206256000,-500.0,0.00035453,10]
[424854430,1781206256000,-225.18697534,0.00035453,10]
[424854432,1781206256000,-804.17102365,0.00035453,10]
[424854431,1781206256000,-500.0,0.00035453,10]
[424854433,1781206256000,-233.5188934,0.00035453,10]
[424854437,1781206256000,-151.27920566,0.00035453,10]
[424854435,1781206256000,-151.0,0.00035453,10]
[424854436,1781206256000,-152.0,0.00035453,10]
[424854434,1781206256000,-151.0,0.00035453,10]
[424854439,1781206256000,-500.0,0.00035453,10]
[424854438,1781206256000,-151.0,0.00035453,10]
[424854440,1781206256000,-531.19172529,0.00035453,10]
[424854442,1781206256000,-1201.65948645,0.00035453,10]
[424854443,1781206256000,-151.0,0.00035453,10]
[424854447,1781206256000,-151.0,0.00035453,10]
[424854445,1781206256000,-242.15909246,0.00035453,10]
[424854444,1781206256000,-483.18894756,0.00035453,10]
[424854448,1781206256000,-152.0,0.00035453,10]
[424854446,1781206256000,-151.0,0.00035453,10]
[424854449,1781206256000,-151.0,0.00035453,10]
[424854450,1781206256000,-500.0,0.00035453,10]
[424854451,1781206256000,-500.0,0.00035453,10]
[424854458,1781206256000,-500.0,0.00035453,10]
[424854453,1781206256000,-251.11897888,0.00035453,10]
[424854481,1781206256000,-152.0,0.00035453,10]
[424854476,1781206256000,-1201.65948653,0.00035453,10]
[424854492,1781206256000,-500.0,0.00035453,10]
[424854507,1781206256000,-500.0,0.00035454,120]
[424854513,1781206256000,-151.0,0.00035459,7]
[424854509,1781206256000,-100000.0,0.00035455,120]
[424854519,1781206256000,-1000.0,0.00035464,30]
[424854518,1781206256000,-420.2,0.0003546,88]
[424854516,1781206256000,-151.0,0.00035459,7]
[424854517,1781206256000,-151.0,0.00035459,7]
[424854520,1781206256000,-400.0,0.0003547,2]
[424854522,1781206256000,-9096.69712251,0.00035484,31]
[424854524,1781206256000,-151.0,0.00035485,7]
[424854521,1781206256000,-700.0,0.0003547,2]
[424854514,1781206256000,-197.110996,0.00035459,7]